bitfinex/quotes_BTCUSD_20250414
["timestamp","ask_amount","ask_price","bid_price","bid_amount"]
[1744598854741,0.00056111,85394.0,85393.0,0.527368]
[1744598854920,0.00056111,85394.0,85393.0,0.64820954]
[1744598856417,0.00056111,85394.0,85393.0,0.65220954]
[1744598857314,0.00056111,85394.0,85393.0,0.65720954]
[1744598858785,0.00056111,85394.0,85393.0,0.65320954]
[1744598859089,0.00056111,85394.0,85393.0,0.65920954]
[1744598859390,0.00056111,85394.0,85393.0,1.07790954]
[1744598860546,0.00056111,85394.0,85393.0,1.07290954]
[1744598861909,0.00056111,85394.0,85393.0,1.07090954]
[1744598862081,0.00056111,85394.0,85393.0,0.009]
[1744598862287,0.00056111,85394.0,85393.0,0.005]
[1744598862687,0.00056111,85394.0,85393.0,0.014]
[1744598862868,0.00290416,85394.0,85393.0,0.004]
[1744598863065,0.187368,85393.0,85386.0,0.011711]
[1744598863381,0.187368,85393.0,85388.0,0.011711]
[1744598863555,0.187368,85393.0,85390.0,0.01171]
[1744598863755,0.187368,85393.0,85388.0,0.011711]
[1744598864151,0.011711,85386.0,85344.0,0.356203]
[1744598864353,0.011712,85379.0,85367.0,0.011714]
[1744598864553,0.187415,85372.0,85367.0,0.0185868]
[1744598864753,0.00234305,85378.0,85357.0,0.0454]
[1744598864754,0.011713,85373.0,85357.0,0.0454]
[1744598864975,0.187457,85353.0,85348.0,0.011716]
[1744598865269,0.187467,85349.0,85346.0,0.0453]
[1744598865402,0.187466,85349.0,85345.0,0.011717]
[1744598865599,0.187483,85341.0,85335.0,0.011718]
[1744598865801,0.187483,85341.0,85336.0,0.011718]
[1744598866167,0.187483,85341.0,85332.0,0.011718]
[1744598866320,0.00234305,85346.0,85343.0,0.011717]
[1744598866522,0.18979305,85356.0,85351.0,0.011716]
[1744598866736,0.01187084,85371.0,85353.0,0.011716]
[1744598867069,0.59398,85357.0,85354.0,0.199169]
[1744598867222,0.59398,85357.0,85356.0,0.18745]
[1744598867545,0.59398,85357.0,85352.0,0.187453]
[1744598867546,0.187455,85354.0,85348.0,0.199183]
[1744598867770,0.18745,85356.0,85350.0,0.011716]
[1744598867906,0.187466,85349.0,85343.0,0.199195]
[1744598868107,0.187466,85349.0,85346.0,0.011717]
[1744598868305,0.187464,85350.0,85346.0,0.011717]
[1744598868526,0.18980705,85350.0,85347.0,0.011716]
[1744598868739,0.4165,85357.0,85354.0,0.011715]
[1744598868900,0.17752,85356.0,85355.0,0.187451]
[1744598869097,0.17752,85356.0,85354.0,0.011715]
[1744598870524,0.17752,85356.0,85353.0,0.011716]
[1744598871159,0.187469,85348.0,85342.0,0.011717]
[1744598871315,0.187469,85348.0,85337.0,0.18749]
[1744598871515,0.187469,85348.0,85343.0,0.011717]
[1744598871715,0.00234305,85350.0,85347.0,0.011716]
[1744598871903,0.17752,85356.0,85355.0,0.187452]
[1744598872106,0.17852,85356.0,85355.0,0.187452]
[1744598872310,0.17752,85356.0,85355.0,0.187452]
[1744598872748,0.187424,85368.0,85355.0,0.187452]
[1744598872749,0.17756,85372.0,85361.0,0.187439]
[1744598872956,0.17756,85372.0,85369.0,0.011713]
[1744598873168,0.17756,85372.0,85368.0,0.011713]
[1744598873365,0.011713,85370.0,85351.0,0.187459]
[1744598873575,0.00234305,85369.0,85363.0,0.011714]
[1744598874020,0.187419,85370.0,85365.0,0.011714]
[1744598874244,0.187419,85370.0,85366.0,0.011714]
[1744598874615,0.187417,85371.0,85367.0,0.011714]
[1744598874836,0.187417,85371.0,85366.0,0.011714]
[1744598875227,0.187423,85369.0,85365.0,0.001]
[1744598875448,0.00234305,85368.0,85365.0,0.012714]
[1744598875657,0.187423,85369.0,85364.0,0.011714]
[1744598875910,0.187435,85364.0,85360.0,0.0491]
[1744598876186,0.187435,85364.0,85349.0,0.011716]
[1744598876187,0.187447,85358.0,85349.0,0.011716]
[1744598876435,0.187447,85358.0,85347.0,0.0491]
[1744598876436,0.187465,85349.0,85347.0,0.0491]
[1744598876686,0.187465,85349.0,85348.0,0.00975386]
[1744598877345,0.187461,85351.0,85348.0,0.00975386]
[1744598877749,0.187461,85351.0,85346.0,0.00013864]
[1744598877750,0.187469,85347.0,85346.0,0.00013864]
[1744598877932,0.365024,85350.0,85346.0,0.00013864]
[1744598878133,0.187468,85348.0,85346.0,0.00013864]
[1744598878579,0.00234305,85347.0,85346.0,0.00013864]
[1744598879129,0.00234305,85347.0,85346.0,0.19061064]
[1744598879398,0.17756,85370.0,85360.0,0.18744]
[1744598879516,0.17756,85370.0,85356.0,0.011715]
[1744598879517,0.187432,85364.0,85358.0,0.011715]
[1744598879721,0.187432,85364.0,85360.0,0.011715]
[1744598879722,0.18977505,85364.0,85360.0,0.011715]
[1744598879967,0.18977505,85364.0,85361.0,0.011714]
[1744598880181,0.00234305,85364.0,85361.0,0.011714]
[1744598880422,0.00234305,85364.0,85358.0,0.19916]
[1744598880423,0.187434,85363.0,85358.0,0.19916]
[1744598880746,0.17756,85370.0,85361.0,0.34]
[1744598880918,0.00234305,85387.0,85385.0,0.011711]
[1744598881122,0.00234305,85387.0,85386.0,0.187384]
[1744598881343,0.187371,85392.0,85385.0,0.199095]
[1744598881496,0.00234305,85387.0,85385.0,0.199095]
[1744598882114,0.1877895,85394.0,85385.0,0.199095]
[1744598882115,0.0004225,85394.0,85387.0,0.187382]
[1744598882524,1.20664,85388.0,85387.0,0.187382]
[1744598882824,1.20564,85388.0,85387.0,0.187382]
[1744598884039,0.0004225,85394.0,85393.0,0.34]
[1744598884245,0.00056111,85394.0,85393.0,0.34]
[1744598884624,0.00056111,85394.0,85392.0,0.18737]
[1744598884831,0.00056111,85394.0,85387.0,0.0984]
[1744598885032,0.01171,85393.0,85387.0,0.0483]
[1744598885230,0.00234305,85392.0,85389.0,0.011711]
[1744598885430,0.00234305,85392.0,85389.0,0.199088]
[1744598885638,0.00234305,85392.0,85389.0,0.2412477]
[1744598885848,0.00256111,85394.0,85392.0,0.187369]
[1744598887112,0.00056111,85394.0,85392.0,0.187369]
[1744598887858,0.00156111,85394.0,85392.0,0.187369]
[1744598895539,0.00156111,85394.0,85393.0,0.4323]
[1744598896660,0.00056111,85394.0,85393.0,0.0923]
[1744598896891,0.00056111,85394.0,85393.0,0.1600844]
[1744598897099,0.00156111,85394.0,85393.0,0.50242621]
[1744598897314,0.00156111,85394.0,85393.0,0.5000844]
[1744598898847,0.002,85399.0,85398.0,0.527358]
[1744598899053,0.002,85399.0,85398.0,0.55776426]
[1744598899248,0.002,85399.0,85393.0,0.0923]
[1744598899507,0.002,85399.0,85396.0,0.01171]
[1744598899706,0.00234305,85398.0,85396.0,0.01171]
[1744598899869,0.00234305,85398.0,85396.0,0.19907]
[1744598900671,0.00234305,85398.0,85396.0,0.01171]
[1744598900871,0.00234305,85398.0,85397.0,0.0513872]
[1744598901067,0.00234305,85398.0,85396.0,0.19907]
[1744598901697,0.002,85399.0,85398.0,0.527358]
[1744598903279,0.002,85399.0,85398.0,0.619658]
[1744598904114,0.002,85399.0,85398.0,0.622658]
[1744598904546,1e-06,85400.0,85399.0,0.34]
[1744598904695,1e-06,85400.0,85399.0,0.46084154]
[1744598906224,0.01100849,85429.0,85426.0,0.187294]
[1744598906379,0.01147043,85429.0,85428.0,0.187292]
[1744598906581,0.00288424,85429.0,85428.0,0.6315223]
[1744598908165,0.00288424,85429.0,85428.0,0.6345223]
[1744598908772,2.4e-07,85429.0,85428.0,0.75536384]
[1744598908996,2.4e-07,85429.0,85428.0,0.75836384]
[1744598909734,0.000423,85434.0,85433.0,0.527281]
[1744598910030,0.00056152,85434.0,85433.0,0.6877829]
[1744598910646,0.00056152,85434.0,85433.0,0.22694136]
[1744598911028,0.00056152,85434.0,85433.0,0.23094136]
[1744598912552,0.00056152,85434.0,85433.0,0.3517829]
[1744598912922,0.0004227,85451.0,85450.0,0.232944]
[1744598913225,0.0004227,85451.0,85450.0,0.2914743]
[1744598914132,0.0004227,85451.0,85450.0,0.2954743]
[1744598914782,0.0004227,85451.0,85450.0,0.2984743]
[1744598920024,0.0004227,85451.0,85450.0,0.007]
[1744598920234,0.49431858,85451.0,85450.0,0.007]
[1744598920451,0.48574524,85451.0,85450.0,0.007]
[1744598920930,0.187288,85430.0,85426.0,0.011706]
[1744598921240,0.187283,85432.0,85426.0,0.011706]
[1744598921241,0.00234305,85431.0,85428.0,0.011705]
[1744598921609,0.00234305,85431.0,85427.0,0.011705]
[1744598921829,0.00234305,85431.0,85430.0,0.187287]
[1744598922008,0.011703,85448.0,85438.0,0.011704]
[1744598922352,0.0004227,85451.0,85450.0,0.187244]
[1744598922581,0.0004227,85451.0,85450.0,0.57618421]
[1744598922787,0.0004227,85451.0,85450.0,0.576844]
[1744598923034,0.0004227,85451.0,85450.0,0.65277911]
[1744598923247,0.0004227,85451.0,85450.0,0.64977911]
[1744598923665,0.0004227,85451.0,85450.0,0.65077911]
[1744598924081,0.0004227,85451.0,85450.0,0.001]
[1744598925227,0.13245381,85451.0,85450.0,0.001]
[1744598925458,0.12360729,85451.0,85450.0,0.001]
[1744598925670,0.011704,85440.0,85428.0,0.198995]
[1744598925913,0.011704,85440.0,85404.0,0.27165]
[1744598925914,0.187296,85426.0,85413.0,0.199032]
[1744598926035,0.18963905,85426.0,85420.0,0.011706]
[1744598926587,0.18963905,85426.0,85414.0,0.011707]
[1744598926839,0.00234305,85426.0,85413.0,0.011707]
[1744598927012,0.00234305,85426.0,85411.0,0.187327]
[1744598927013,0.18614267,85430.0,85427.0,0.011705]
[1744598927239,0.00234305,85429.0,85427.0,0.011705]
[1744598927925,0.00234305,85429.0,85428.0,0.187292]
[1744598928174,0.17724,85430.0,85428.0,0.187292]
[1744598928391,0.00234305,85429.0,85428.0,0.187292]
[1744598929891,0.00234305,85429.0,85428.0,0.22947635]
[1744598930066,0.00234305,85429.0,85428.0,0.189292]
[1744598930609,0.00234305,85429.0,85428.0,0.002]
[1744598932609,0.12318459,85429.0,85428.0,0.002]
[1744598933693,0.30046459,85429.0,85428.0,0.001]
[1744598933907,0.198997,85428.0,85425.0,0.00013852]
[1744598934149,0.12318459,85427.0,85425.0,0.00013852]
[1744598934387,0.187296,85426.0,85425.0,0.00013852]
[1744598934659,0.31048059,85426.0,85425.0,0.00013852]
[1744598934860,0.30813754,85426.0,85425.0,0.00013852]
[1744598935296,0.17728,85429.0,85425.0,0.01184452]
[1744598935528,0.187296,85426.0,85425.0,0.00013852]
[1744598935762,0.18963905,85426.0,85425.0,0.00013852]
[1744598935999,0.18963905,85426.0,85425.0,0.00113852]
[1744598936674,0.31048059,85426.0,85425.0,0.00113852]
[1744598936897,0.30813754,85426.0,85425.0,0.00113852]
[1744598937339,0.48541754,85426.0,85425.0,0.00113852]
[1744598940835,0.4165,85426.0,85425.0,0.57403652]
[1744598941164,0.0128676,85458.0,85425.0,0.04673852]
[1744598941165,0.00861183,85434.0,85425.0,0.04673852]
[1744598941313,0.12084154,85426.0,85425.0,0.00113852]
[1744598941517,0.72698059,85426.0,85425.0,0.00113852]
[1744598941693,0.187347,85403.0,85398.0,0.0008454]
[1744598942034,0.187351,85401.0,85398.0,0.0008454]
[1744598942246,0.187355,85399.0,85398.0,0.00130734]
[1744598942455,0.31053959,85399.0,85398.0,0.00130734]
[1744598942653,0.30819654,85399.0,85398.0,0.00130734]
[1744598943053,0.73352608,85399.0,85398.0,0.00130734]
[1744598943269,0.73352608,85399.0,85398.0,0.00330734]
[1744598943412,0.73352608,85399.0,85398.0,0.00230734]
[1744598943625,0.73352608,85399.0,85398.0,0.00130734]
[1744598944029,0.54617108,85399.0,85398.0,0.00130734]
[1744598944438,0.42532954,85399.0,85398.0,0.04930734]
[1744598945148,0.42632954,85399.0,85398.0,0.04930734]
[1744598945352,0.4175,85399.0,85398.0,0.09870734]
[1744598945519,0.4165,85399.0,85398.0,0.09870734]
[1744598945912,0.4165,85399.0,85398.0,0.09970734]
[1744598946486,0.4165,85399.0,85398.0,0.09870734]
[1744598946895,0.4165,85399.0,85398.0,0.10070734]
[1744598947552,0.17728,85403.0,85400.0,0.011709]
[1744598947751,0.00234305,85402.0,85400.0,0.011709]
[1744598947895,0.00234305,85402.0,85401.0,0.05105513]
[1744598948090,0.17728,85403.0,85401.0,0.05105513]
[1744598948300,0.17716,85416.0,85413.0,0.011707]
[1744598949254,0.17716,85416.0,85415.0,0.18732]
[1744598949797,0.17816,85416.0,85415.0,0.18732]
[1744598949998,0.17816,85416.0,85413.0,0.011707]
[1744598950625,0.011707,85412.0,85373.0,0.4187]
[1744598950822,0.187352,85401.0,85393.0,0.0125554]
[1744598951056,0.00234305,85400.0,85397.0,0.01171]
[1744598951291,0.00234305,85402.0,85399.0,0.011709]
[1744598951498,0.18691317,85416.0,85408.0,0.011708]
[1744598951646,0.187326,85413.0,85407.0,0.011708]
[1744598951832,0.12084154,85412.0,85406.0,0.011708]
[1744598952588,0.187334,85409.0,85405.0,0.011708]
[1744598953003,0.13254954,85409.0,85398.0,0.11270734]
[1744598953162,0.187353,85400.0,85398.0,0.01330734]
[1744598953487,0.00234305,85399.0,85398.0,0.01330734]
[1744598953874,0.00234305,85407.0,85405.0,0.011708]
[1744598954120,0.4165,85408.0,85405.0,0.19905]
[1744598954318,0.18591317,85416.0,85415.0,0.18732]
[1744598954596,0.18591317,85416.0,85415.0,0.23532]
[1744598954597,0.17716,85416.0,85415.0,0.23532]
[1744598955026,0.17716,85416.0,85415.0,0.048]
[1744598955764,0.17716,85416.0,85411.0,0.0494]
[1744598955981,0.18966305,85415.0,85411.0,0.061108]
[1744598956167,0.18966305,85415.0,85411.0,0.0494]
[1744598956366,0.187325,85413.0,85411.0,0.0494]
[1744598956569,0.187325,85413.0,85406.0,0.048]
[1744598956570,0.187338,85407.0,85406.0,0.048]
[1744598957606,0.187352,85401.0,85399.0,0.0494]
[1744598957805,0.00234305,85400.0,85398.0,0.05930734]
[1744598958943,0.00234305,85400.0,85398.0,0.10630901]
[1744598959159,0.00234305,85405.0,85401.0,0.011709]
[1744598959530,0.00234305,85405.0,85399.0,0.002]
[1744598959739,0.18735,85402.0,85399.0,0.002]
[1744598959942,0.00234305,85401.0,85399.0,0.002]
[1744598960284,0.30819454,85400.0,85399.0,0.002]
[1744598960837,0.30819454,85400.0,85398.0,0.01130734]
[1744598961058,0.00234305,85399.0,85398.0,0.01330734]
[1744598961221,0.12318459,85399.0,85398.0,0.01330734]
[1744598961637,0.12318459,85399.0,85398.0,0.01130734]
[1744598962792,0.53968459,85399.0,85398.0,0.01130734]
[1744598963023,0.53734154,85399.0,85398.0,0.01130734]
[1744598964479,0.4165,85399.0,85398.0,0.01130734]
[1744598964704,0.72469654,85399.0,85398.0,0.01130734]
[1744598965417,0.72469654,85399.0,85398.0,0.01230734]
[1744598965875,0.72469654,85399.0,85398.0,0.01130734]
[1744598970359,0.187366,85394.0,85393.0,0.0008454]
[1744598970582,0.48775059,85394.0,85393.0,0.0008454]
[1744598970798,0.48540754,85394.0,85393.0,0.0008454]
[1744598973173,0.60613602,85394.0,85393.0,0.0008454]
[1744598974128,0.90190754,85394.0,85393.0,0.0008454]
[1744598978135,2.46196839,85394.0,85390.0,4e-07]
[1744598978333,0.187415,85372.0,85371.0,0.002]
[1744598978505,0.90413959,85372.0,85371.0,0.00213861]
[1744598978723,1.01632647,85372.0,85371.0,0.00213861]
[1744598978889,0.90179654,85372.0,85371.0,0.00213861]
[1744598979281,0.187432,85364.0,85363.0,0.0008456]
[1744598979476,0.31061659,85364.0,85363.0,0.0008456]
[1744598979679,0.33010063,85364.0,85363.0,0.0008456]
[1744598979861,0.75548703,85364.0,85363.0,0.0008456]
[1744598980227,0.76693435,85364.0,85363.0,0.0008456]
[1744598981234,0.74510726,85364.0,85363.0,0.0008456]
[1744598981668,0.187443,85359.0,85358.0,6e-07]
[1744598981886,0.187443,85359.0,85322.0,0.01172]
[1744598981887,0.20305685,85326.0,85325.0,4e-07]
[1744598982228,2.14800144,85326.0,85325.0,0.00013904]
[1744598982435,0.187527,85321.0,85320.0,0.02007771]
[1744598982758,0.31071159,85321.0,85320.0,0.00486388]
[1744598982931,0.30836854,85321.0,85320.0,0.00532607]
[1744598983144,0.48540854,85321.0,85320.0,0.00532607]
[1744598983347,0.30836854,85321.0,85320.0,0.00532607]
[1744598983687,0.48540854,85321.0,85320.0,0.00532607]
[1744598983888,0.30836854,85321.0,85320.0,0.00532607]
[1744598984200,0.48544854,85321.0,85320.0,0.00532607]
[1744598984370,0.48744854,85321.0,85320.0,0.00532607]
[1744598984569,0.31897368,85321.0,85320.0,0.00532607]
[1744598984804,0.31697368,85321.0,85320.0,0.00532607]
[1744598985015,0.49505368,85321.0,85320.0,0.00532607]
[1744598985188,0.97032301,85321.0,85320.0,0.00532607]
[1744598985387,0.84959453,85321.0,85320.0,0.00532607]
[1744598986780,0.85159453,85321.0,85320.0,0.00532607]
[1744598987179,0.85059453,85321.0,85320.0,0.00532607]
[1744598987388,0.85459453,85321.0,85320.0,0.00532607]
[1744598988405,0.961475,85321.0,85320.0,0.00532607]
[1744598988877,0.85459453,85321.0,85320.0,0.00532607]
[1744598989097,0.84005368,85321.0,85320.0,0.00532607]
[1744598989788,0.83805368,85321.0,85320.0,0.00532607]
[1744598989983,0.84005368,85321.0,85320.0,0.00532607]
[1744598990207,0.83605368,85321.0,85320.0,0.00532607]
[1744598990434,0.83905368,85321.0,85320.0,0.00532607]
[1744598990713,0.96932301,85321.0,85320.0,0.00532607]
[1744598990916,0.97432301,85321.0,85320.0,0.00532607]
[1744598991363,0.97132301,85321.0,85320.0,0.00532607]
[1744598991601,0.97532301,85321.0,85320.0,0.00532607]
[1744598991972,0.85459453,85321.0,85320.0,0.00532607]
[1744598992163,0.85659453,85321.0,85320.0,0.00532607]
[1744598992373,0.85859453,85321.0,85320.0,0.00532607]
[1744598993341,0.35454085,85320.0,85307.0,1e-06]
[1744598993564,0.35454085,85320.0,85285.0,0.0506458]
[1744598993565,0.187604,85286.0,85285.0,0.0506458]
[1744598993786,0.48794859,85286.0,85285.0,0.0506458]
[1744598994006,0.48560554,85286.0,85285.0,0.05078438]
[1744598994901,0.48560554,85286.0,85285.0,0.05178438]
[1744598995114,0.49714909,85286.0,85285.0,0.05178438]
[1744598995998,0.56271072,85286.0,85285.0,0.05178438]
[1744598996219,0.49714909,85286.0,85285.0,0.05278438]
[1744598996693,0.49714909,85286.0,85285.0,0.00298438]
[1744598996694,0.85168994,85286.0,85285.0,0.00298438]
[1744598997634,0.85168994,85286.0,85285.0,0.00198438]
[1744598998219,0.85168994,85286.0,85285.0,0.00098438]
[1744598999046,0.85168994,85286.0,85285.0,3.8e-07]
[1744598999047,0.86029272,85286.0,85285.0,3.8e-07]
[1744599000284,0.86529272,85286.0,85285.0,3.8e-07]
[1744599000548,1.28179272,85286.0,85285.0,3.8e-07]
[1744599000846,1.28179272,85286.0,85221.0,1e-06]
[1744599000847,0.001,85228.0,85221.0,1e-06]
[1744599001035,0.32312639,85222.0,85221.0,1e-06]
[1744599001269,0.32312639,85222.0,85221.0,0.00046398]
[1744599001935,0.68393703,85222.0,85221.0,9.8e-07]
[1744599002144,0.187793,85200.0,85199.0,0.000847]
[1744599002398,0.31097759,85200.0,85199.0,0.000847]
[1744599002585,0.1295894,85200.0,85199.0,0.000847]
[1744599002838,0.13193245,85200.0,85199.0,0.000847]
[1744599003268,0.13193245,85200.0,85199.0,0.00064886]
[1744599004543,0.13193245,85200.0,85199.0,0.00164886]
[1744599007126,0.54843245,85200.0,85199.0,0.00164886]
[1744599007376,0.5460894,85200.0,85199.0,0.00164886]
[1744599008363,0.5864895,85200.0,85199.0,0.00164886]
[1744599008569,0.5460894,85200.0,85199.0,0.00164886]
[1744599008988,0.8860894,85200.0,85199.0,0.00164886]
[1744599010359,0.8860894,85200.0,85199.0,0.00064886]
[1744599010547,0.011737,85194.0,85191.0,0.022]
[1744599010782,0.31099259,85193.0,85191.0,0.022]
[1744599010980,0.30864954,85193.0,85191.0,0.022]
[1744599011211,0.00234305,85192.0,85191.0,0.022]
[1744599011432,0.12318459,85192.0,85191.0,0.022]
[1744599011636,0.46318459,85192.0,85191.0,0.022]
[1744599011842,0.46084154,85192.0,85191.0,0.02213877]
[1744599012052,0.46084154,85192.0,85191.0,0.02313877]
[1744599012284,0.46084154,85192.0,85184.0,8e-05]
[1744599012285,0.527826,85185.0,85184.0,8e-05]
[1744599012534,0.527826,85185.0,85167.0,0.0487]
[1744599012535,0.187863,85168.0,85167.0,0.0487]
[1744599012761,0.12318459,85168.0,85167.0,0.0487]
[1744599012993,0.187826,85186.0,85174.0,0.18785]
[1744599013226,0.1,85206.0,85176.0,0.01174]
[1744599013227,0.18783,85184.0,85176.0,0.01174]
[1744599013447,0.12318459,85183.0,85176.0,0.01174]
[1744599013671,0.187838,85180.0,85174.0,0.01174]
[1744599013895,0.00234305,85179.0,85177.0,0.01174]
[1744599014118,0.00234305,85179.0,85176.0,0.01174]
[1744599014897,0.01113157,85179.0,85176.0,0.01274]
[1744599015148,0.00234305,85179.0,85176.0,0.01274]
[1744599015394,0.00234305,85181.0,85177.0,0.01174]
[1744599015911,0.00234305,85181.0,85176.0,0.01374]
[1744599015912,0.187844,85177.0,85176.0,0.002]
[1744599016230,0.31102859,85177.0,85176.0,0.003]
[1744599016393,0.187863,85168.0,85167.0,0.00011945]
[1744599016625,0.31104759,85168.0,85167.0,0.00011945]
[1744599016849,0.30870454,85168.0,85167.0,0.00011945]
[1744599017306,0.12084154,85168.0,85167.0,0.00011945]
[1744599017548,0.12318459,85168.0,85167.0,0.00011945]
[1744599017774,0.0086556,85179.0,85174.0,0.0981]
[1744599017998,0.187844,85177.0,85174.0,0.0981]
[1744599018244,0.00234305,85176.0,85174.0,0.1102581]
[1744599018713,0.00234305,85178.0,85174.0,0.0981]
[1744599018925,0.187844,85177.0,85174.0,0.0981]
[1744599019176,0.00234305,85176.0,85174.0,0.28595]
[1744599019392,0.00863337,85179.0,85176.0,0.199584]
[1744599019617,0.187848,85175.0,85174.0,0.0487]
[1744599019850,0.31103259,85175.0,85174.0,0.0487]
[1744599020102,0.30868954,85175.0,85174.0,0.0487]
[1744599020324,0.30868954,85175.0,85174.0,0.0497]
[1744599020567,0.30868954,85175.0,85174.0,0.0487]
[1744599020803,0.30868954,85175.0,85174.0,0.0497]
[1744599021283,0.00864834,85179.0,85174.0,0.0497]
[1744599021522,0.00234305,85178.0,85175.0,0.01174]
[1744599021750,0.011739,85183.0,85175.0,0.01174]
[1744599021751,0.4165,85184.0,85181.0,0.011739]
[1744599021977,0.12084154,85183.0,85181.0,0.011739]
[1744599022419,0.12981387,85183.0,85181.0,0.011739]
[1744599023375,0.12981387,85183.0,85181.0,0.0352184]
[1744599023589,0.4175,85184.0,85182.0,0.187833]
[1744599023812,0.4175,85184.0,85183.0,0.0987]
[1744599024079,0.3697,85184.0,85183.0,0.0987]
[1744599025324,0.3697,85184.0,85183.0,0.1027]
[1744599025549,0.3697,85184.0,85183.0,0.1348759]
[1744599025774,0.3697,85184.0,85183.0,0.1308759]
[1744599025995,0.3697,85184.0,85183.0,0.1338759]
[1744599026430,0.39147037,85184.0,85183.0,0.1338759]
[1744599026664,0.39147037,85184.0,85183.0,0.13275792]
[1744599026884,0.02177037,85184.0,85183.0,0.13675792]
[1744599027331,0.02177037,85184.0,85183.0,0.13375792]
[1744599027799,0.02177037,85184.0,85183.0,0.13675792]
[1744599028007,0.00234305,85190.0,85186.0,0.011739]
[1744599028245,0.12084154,85189.0,85186.0,0.011739]
[1744599028459,0.00234305,85188.0,85186.0,0.06650259]
[1744599028690,0.00234305,85188.0,85186.0,0.011739]
[1744599028914,0.02186639,85189.0,85188.0,0.011738]
[1744599030442,0.02186639,85189.0,85188.0,0.01408558]
[1744599030879,0.3697,85206.0,85205.0,0.187782]
[1744599031071,0.000424,85219.0,85218.0,0.187753]
[1744599031433,0.000424,85219.0,85218.0,0.2010434]
[1744599031996,0.000424,85219.0,85218.0,0.2508434]
[1744599032199,0.00088486,85219.0,85218.0,0.24849664]
[1744599032509,0.00088486,85219.0,85218.0,0.3132448]
[1744599033155,0.00088486,85219.0,85218.0,0.3152448]
[1744599033496,0.00088486,85219.0,85218.0,0.37347551]
[1744599033651,0.00088486,85219.0,85218.0,0.83431705]
[1744599033855,0.002,85249.0,85247.0,0.092]
[1744599034053,0.002,85249.0,85248.0,0.200004]
[1744599034520,0.002,85249.0,85248.0,0.21772336]
[1744599035462,0.002,85249.0,85248.0,0.03015581]
[1744599035676,0.002,85249.0,85248.0,0.01783881]
[1744599035874,0.002,85249.0,85248.0,0.0105081]
[1744599036535,0.31152654,85249.0,85248.0,0.0105081]
[1744599036896,0.31152654,85249.0,85248.0,0.00011945]
[1744599037098,0.003,85249.0,85248.0,0.00011945]
[1744599037295,0.003,85249.0,85248.0,0.0212468]
[1744599037494,0.003,85249.0,85248.0,0.03482977]
[1744599037750,0.003,85249.0,85248.0,0.03248378]
[1744599038896,0.31152654,85249.0,85248.0,0.01135643]
[1744599039199,0.31152654,85249.0,85248.0,0.00011945]
[1744599039603,0.31152654,85249.0,85248.0,0.00111945]
[1744599040578,0.65052654,85249.0,85248.0,0.00111945]
[1744599041223,0.65052654,85249.0,85248.0,0.00011945]
[1744599041434,0.75546049,85249.0,85248.0,0.00011945]
[1744599041657,0.66506739,85249.0,85248.0,0.00211945]
[1744599041851,0.66506739,85249.0,85248.0,0.00111945]
[1744599042068,0.66806739,85249.0,85248.0,4.5e-07]
[1744599042271,0.18776,85216.0,85209.0,0.011735]
[1744599042481,0.187747,85221.0,85215.0,0.011735]
[1744599042684,0.187768,85212.0,85210.0,0.05965264]
[1744599042914,0.01407805,85215.0,85210.0,0.0502758]
[1744599043110,0.187775,85208.0,85207.0,0.00046086]
[1744599043318,0.31095959,85208.0,85207.0,0.00046086]
[1744599043525,0.12084154,85208.0,85207.0,0.00046086]
[1744599043724,0.18776,85215.0,85210.0,0.011735]
[1744599043941,0.30860454,85214.0,85211.0,0.02351789]
[1744599044107,0.187775,85208.0,85207.0,0.00046086]
[1744599044316,0.31095959,85208.0,85207.0,0.00046086]
[1744599044514,0.30861654,85208.0,85207.0,0.00346086]
[1744599044722,0.187758,85217.0,85212.0,0.011735]
[1744599044889,0.18776,85215.0,85210.0,0.011735]
[1744599045245,0.187764,85213.0,85211.0,0.002]
[1744599045576,0.12318459,85212.0,85211.0,0.002]
[1744599045731,0.00234305,85212.0,85211.0,0.004]
[1744599045930,0.00234305,85219.0,85215.0,0.011735]
[1744599046134,0.011735,85214.0,85211.0,0.002]
[1744599046340,0.19010905,85213.0,85211.0,0.002]
[1744599046514,0.187775,85208.0,85207.0,8.6e-07]
[1744599046745,0.187775,85208.0,85207.0,0.00300086]
[1744599046746,0.65095959,85208.0,85207.0,0.00300086]
[1744599046980,0.64861654,85208.0,85207.0,8.6e-07]
[1744599047795,0.64861654,85208.0,85207.0,0.00100086]
[1744599048034,0.64861654,85208.0,85207.0,8.6e-07]
[1744599048457,1.03785739,85208.0,85207.0,8.6e-07]
[1744599049648,1.02331654,85208.0,85207.0,8.6e-07]
[1744599050574,1.02131654,85208.0,85207.0,8.6e-07]
[1744599050831,1.01831654,85208.0,85207.0,8.6e-07]
[1744599051079,1.02231654,85208.0,85207.0,8.6e-07]
[1744599051273,0.65261654,85208.0,85207.0,8.6e-07]
[1744599051406,0.65161654,85208.0,85207.0,8.6e-07]
[1744599051606,0.65461654,85208.0,85207.0,8.6e-07]
[1744599052216,0.65561654,85208.0,85207.0,8.6e-07]
[1744599053616,0.64861654,85208.0,85207.0,8.6e-07]
[1744599053808,0.65461654,85208.0,85207.0,8.6e-07]
[1744599054490,0.65861654,85208.0,85207.0,8.6e-07]
[1744599060087,0.13084154,85208.0,85207.0,8.6e-07]
[1744599060366,0.01,85208.0,85207.0,0.04920086]
[1744599060507,0.31861654,85208.0,85207.0,8.6e-07]
[1744599061130,0.66315739,85208.0,85207.0,8.6e-07]
[1744599061516,0.66415739,85208.0,85207.0,8.6e-07]
[1744599061702,0.66515739,85208.0,85207.0,8.6e-07]
[1744599062349,0.65061654,85208.0,85207.0,8.6e-07]
[1744599062746,0.64861654,85208.0,85207.0,8.6e-07]
[1744599063092,0.83157654,85208.0,85207.0,8.6e-07]
[1744599063755,0.85701684,85208.0,85207.0,8.6e-07]
[1744599065624,0.89023507,85208.0,85207.0,8.6e-07]
[1744599065832,0.85701684,85208.0,85207.0,8.6e-07]
[1744599067033,0.83847599,85208.0,85207.0,8.6e-07]
[1744599067389,0.83947599,85208.0,85207.0,8.6e-07]
[1744599067593,0.32251599,85208.0,85207.0,8.6e-07]
[1744599067820,0.01389945,85208.0,85207.0,8.6e-07]
[1744599068024,0.01189945,85208.0,85207.0,0.03408042]
[1744599068182,0.0142425,85208.0,85207.0,0.02689985]
[1744599068391,0.32285904,85208.0,85207.0,0.00719936]
[1744599068615,0.30961654,85208.0,85207.0,8.6e-07]